bitfinex-derivatives/quotes_SOLF0:USTF0_20250818
["timestamp","ask_amount","ask_price","bid_price","bid_amount"]
[1755522129251,0.03780911,182.91,182.88,3.01]
[1755522130851,2.86,182.9,182.89,3.01]
[1755522132059,0.03780911,182.91,182.87,5.4653]
[1755522132353,2.89780911,182.91,182.9,3.01]
[1755522133454,2.89780911,182.91,182.88,3.01]
[1755522133657,2.86,182.9,182.87,3.01]
[1755522133857,0.03780911,182.91,182.87,3.01]
[1755522134458,0.03780911,182.91,182.89,3.01]
[1755522135053,0.03780911,182.91,182.89,5.4647]
[1755522135261,0.03780911,182.91,182.9,3.01]
[1755522138364,0.03780911,182.91,182.9,8.4745]
[1755522143967,2.92,182.98,182.94,2.98]
[1755522144566,2.92,183.0,182.95,5.69939549]
[1755522144764,2.92,183.0,182.96,2.98]
[1755522144959,2.92,183.0,182.97,5.4622]
[1755522145163,2.92,183.02,182.96,3.01525987]
[1755522145360,2.92,183.05,182.96,3.01525987]
[1755522145565,2.92,183.05,182.99,2.98]
[1755522145867,2.92,183.05,182.99,3.01904126]
[1755522149674,2.92,183.05,183.0,2.98]
[1755522150169,2.92,183.06,183.01,2.98]
[1755522150364,2.92,183.05,183.01,2.98]
[1755522151676,2.92,183.04,183.01,2.98]
[1755522151871,2.92,183.06,183.01,2.98]
[1755522152174,2.92,183.06,183.02,2.98]
[1755522152375,2.92,183.06,183.0,2.98]
[1755522153670,2.92,183.06,182.99,0.03904126]
[1755522153872,2.92,183.05,182.99,0.03904126]
[1755522154177,2.92,183.05,182.99,3.01904126]
[1755522154578,2.92,183.05,182.99,8.71843675]
[1755522154876,2.92,183.03,182.99,5.73843675]
[1755522155075,2.92,183.06,183.0,2.98]
[1755522155276,2.92,183.06,182.99,0.03904126]
[1755522155475,2.92,183.04,182.99,0.03904126]
[1755522155670,2.92,183.04,183.0,2.98]
[1755522156375,2.92,183.04,182.99,0.03904126]
[1755522158275,2.92,183.04,182.99,3.01904126]
[1755522158578,2.92,183.04,182.99,0.03904126]
[1755522160286,2.92,183.06,183.0,2.98]
[1755522161077,2.92,183.04,182.99,0.03904126]
[1755522161283,2.92,183.04,182.99,3.01904126]
[1755522161489,2.92,183.04,182.99,0.03904126]
[1755522162177,2.92,183.04,182.99,3.01904126]
[1755522162685,2.92,183.04,182.99,0.03904126]
[1755522162888,2.92,183.04,183.01,2.98]
[1755522163090,2.92,183.03,183.02,2.98]
[1755522163286,370.14,183.07,183.0,8.4415]
[1755522163583,136.1,183.06,183.01,2.98]
[1755522163788,136.1,183.06,183.02,0.03533428]
[1755522163989,136.1,183.06,183.03,2.98]
[1755522164188,139.02,183.06,183.03,2.98]
[1755522164788,136.1,183.06,183.03,2.98]
[1755522165189,139.02,183.06,183.03,2.98]
[1755522165390,2.92,183.05,183.02,0.03533428]
[1755522165586,2.92,183.05,183.02,3.01533428]
[1755522165885,2.92,183.04,183.02,3.01533428]
[1755522166092,2.92,183.04,183.03,2.98]
[1755522166584,136.1,183.06,183.02,0.03533428]
[1755522166785,2.92,183.03,183.02,3.01533428]
[1755522167089,2.92,183.04,183.03,2.98]
[1755522167885,136.1,183.06,183.02,3.01533428]
[1755522168184,2.92,183.11,183.03,2.98]
[1755522168389,5.69939549,183.13,183.03,2.98]
[1755522168390,139.0,183.08,183.03,2.98]
[1755522168586,2.92,183.09,183.03,2.98]
[1755522168791,136.08,183.1,183.03,2.98]
[1755522169085,2.92,183.09,183.05,2.98]
[1755522171086,2.92,183.07,183.04,0.03652331]
[1755522171986,2.92,183.07,183.04,3.01652331]
[1755522172194,2.9,183.06,183.04,3.01652331]
[1755522173393,2.9,183.06,183.05,2.9]
[1755522174593,2.9,183.08,183.05,2.9]
[1755522174893,2.9,183.08,183.04,0.03652331]
[1755522174894,2.9,183.08,183.06,2.9]
[1755522175094,54.0,183.09,183.05,2.9]
[1755522175693,56.9,183.09,183.05,2.9]
[1755522176889,2.9,183.08,183.05,2.9]
[1755522177687,2.9,183.08,183.04,0.03652331]
[1755522177992,2.9,183.08,183.07,2.9]
[1755522178897,54.0,183.09,183.05,2.9]
[1755522179193,2.9,183.05,183.04,2.93652331]
[1755522179396,2.9,183.08,183.04,2.93652331]
[1755522179791,2.9,183.07,183.05,2.9]
[1755522180094,2.9,183.07,183.06,2.9]
[1755522180290,2.9,183.06,183.04,0.03652331]
[1755522180492,2.9,183.05,183.04,2.93652331]
[1755522180691,136.34,183.07,183.04,0.03652331]
[1755522180995,136.34,183.07,183.05,2.9]
[1755522181198,139.24,183.07,183.05,2.9]
[1755522181396,139.24,183.07,183.06,2.9]
[1755522181700,2.9,183.05,183.04,0.03652331]
[1755522182498,2.9,183.05,183.04,2.93652331]
[1755522183898,2.9,183.05,183.04,0.03652331]
[1755522184399,2.9,183.05,183.04,2.93652331]
[1755522185796,136.34,183.07,183.05,2.9]
[1755522185998,2.9,183.12,183.06,2.9]
[1755522186197,136.28,183.08,183.06,2.9]
[1755522186490,2.9,183.09,183.06,2.9]
[1755522186695,2.9,183.09,183.05,0.04069418]
[1755522186895,2.9,183.07,183.05,2.94069418]
[1755522187102,2.9,183.07,183.06,2.9]
[1755522187806,136.28,183.11,183.06,2.9]
[1755522188010,2.9,183.08,183.07,2.9]
[1755522189808,136.28,183.11,183.07,2.9]
[1755522190010,2.9,183.09,183.08,2.9]
[1755522190212,7.5457104,183.09,183.08,2.9]
[1755522190707,4.6457104,183.09,183.08,2.9]
[1755522190909,7.5457104,183.09,183.08,2.9]
[1755522192014,2.9,183.09,183.08,2.9]
[1755522192313,2.9,183.1,183.05,0.04069418]
[1755522192705,136.28,183.11,183.05,0.04069418]
[1755522192906,136.28,183.11,183.06,2.9]
[1755522193710,139.18,183.11,183.06,2.9]
[1755522193915,136.28,183.11,183.06,2.9]
[1755522194110,2.9,183.1,183.06,2.9]
[1755522194415,2.9,183.09,183.06,2.9]
[1755522194815,136.28,183.11,183.05,0.04069418]
[1755522194816,2.9,183.1,183.05,0.04069418]
[1755522195012,2.9,183.08,183.06,2.9]
[1755522195217,2.9,183.1,183.06,2.9]
[1755522195421,136.28,183.11,183.06,2.9]
[1755522195606,4.6431138,183.1,183.06,2.9]
[1755522195810,139.18,183.11,183.06,2.9]
[1755522196812,2.9,183.1,183.06,2.9]
[1755522197512,2.9,183.1,183.07,2.9]
[1755522197817,2.9,183.08,183.07,2.9]
[1755522198113,136.28,183.11,183.05,0.04069418]
[1755522198316,4.64272834,183.1,183.06,2.9]
[1755522198514,136.28,183.11,183.06,2.9]
[1755522199517,139.18,183.11,183.06,2.9]
[1755522203518,6.08399788,183.2,183.06,5.69939549]
[1755522203719,136.0,183.15,183.07,2.85]
[1755522203921,2.86,183.14,183.07,2.85]
[1755522204125,2.86,183.13,183.07,2.85]
[1755522204422,2.86,183.13,183.11,2.85]
[1755522204614,2.86,183.13,183.12,2.85]
[1755522204812,138.86,183.14,183.09,0.03660857]
[1755522205010,138.86,183.14,183.13,2.85]
[1755522205817,2.86,183.12,183.11,2.85]
[1755522206021,136.0,183.14,183.11,2.85]
[1755522207318,2.86,183.13,183.1,2.85]
[1755522207915,136.0,183.14,183.1,2.85]
[1755522208224,138.86,183.14,183.1,2.85]
[1755522208820,2.86,183.13,183.1,2.85]
[1755522209222,2.86,183.13,183.11,2.85]
[1755522209824,2.86,183.13,183.12,2.85]
[1755522210124,2.86,183.16,183.12,2.85]
[1755522210921,2.86,183.16,183.12,2.88861015]
[1755522213526,2.86,183.15,183.12,2.88861015]
[1755522213724,2.86,183.16,183.12,2.88861015]
[1755522214128,135.98,183.17,183.12,2.88861015]
[1755522214326,138.84,183.17,183.12,2.88861015]
[1755522214524,2.86,183.16,183.12,2.88861015]
[1755522214927,2.86,183.15,183.12,2.88861015]
[1755522215123,135.98,183.17,183.12,0.03861015]
[1755522215124,2.86,183.16,183.12,0.03861015]
[1755522215727,2.86,183.16,183.12,2.88861015]
[1755522215927,2.86,183.16,183.13,2.85]
[1755522216732,2.86,183.16,183.12,2.88861015]
[1755522217331,2.86,183.16,183.12,0.03861015]
[1755522217929,2.86,183.16,183.13,2.85]
[1755522218726,2.86,183.16,183.14,2.85]
[1755522218930,2.86,183.16,183.15,2.85]
[1755522219322,2.86,183.16,183.12,0.03861015]
[1755522219528,2.86,183.15,183.14,2.85]
[1755522221034,135.98,183.17,183.12,0.03861015]
[1755522221226,138.84,183.17,183.13,2.85]
[1755522221925,2.86,183.16,183.13,2.85]
[1755522222128,135.98,183.17,183.13,2.85]
[1755522224135,210.14242173,183.22,183.13,2.85]
[1755522224136,135.92,183.21,183.13,2.85]
[1755522224532,135.92,183.21,183.13,8.3075]
[1755522224735,138.78,183.21,183.14,2.85]
[1755522224936,138.78,183.21,183.16,2.85]
[1755522225137,2.86,183.2,183.16,2.85]
[1755522225538,135.92,183.21,183.16,2.85]
[1755522226638,138.78,183.21,183.16,2.85]
[1755522227541,2.86,183.2,183.16,2.85]
[1755522228540,2.86,183.19,183.16,2.85]
[1755522228842,138.78,183.21,183.16,2.85]
[1755522229040,2.86,183.2,183.16,2.85]
[1755522230136,135.92,183.21,183.15,0.03462786]
[1755522230440,2.86,183.2,183.16,2.85]
[1755522232837,3.07,183.2,183.15,0.03462786]
[1755522233244,3.07,183.2,183.17,2.96]
[1755522234445,3.07,183.2,183.15,0.03462786]
[1755522234637,3.07,183.2,183.15,2.99462786]
[1755522234939,3.07,183.2,183.16,2.96]
[1755522235144,3.07,183.2,183.17,2.96]
[1755522235347,3.07,183.2,183.16,2.96]
[1755522235846,135.92,183.21,183.16,2.96]
[1755522236037,3.07,183.2,183.16,2.96]
[1755522236240,135.92,183.21,183.16,2.96]
[1755522236444,3.07,183.19,183.16,2.96]
[1755522236839,366.76,183.35,183.15,0.03462786]
[1755522237145,3.07,183.24,183.16,2.96]
[1755522237540,135.86,183.23,183.18,0.03761545]
[1755522237740,3.07,183.22,183.19,2.96]
[1755522238948,3.07,183.21,183.2,2.96]
[1755522239738,135.86,183.23,183.19,2.96]
[1755522240146,3.07,183.22,183.19,2.96]
[1755522241546,138.93,183.23,183.19,2.96]
[1755522241748,3.07,183.22,183.19,2.96]
[1755522241945,3.07,183.22,183.18,0.03761545]
[1755522242147,135.86,183.23,183.18,0.03761545]
[1755522242346,135.86,183.23,183.2,2.96]
[1755522242546,3.07,183.22,183.21,2.96]
[1755522242744,135.86,183.23,183.21,2.96]
[1755522242940,135.86,183.23,183.19,2.96]
[1755522243146,3.07,183.22,183.19,2.96]
[1755522243444,135.86,183.23,183.18,0.03761545]
[1755522243644,3.07,183.21,183.19,2.96]
[1755522243845,3.07,183.22,183.19,2.96]
[1755522244148,3.07,183.21,183.2,2.96]
[1755522244548,135.86,183.23,183.2,2.96]
[1755522244849,3.07,183.21,183.2,2.96]
[1755522245440,3.07,183.21,183.18,0.03761545]
[1755522245441,3.07,183.21,183.18,2.99761545]
[1755522245649,3.07,183.22,183.18,2.99761545]
[1755522245852,3.07,183.22,183.19,2.96]
[1755522246445,3.07,183.21,183.18,0.03761545]
[1755522246645,141.55939549,183.23,183.18,2.99761545]
[1755522246848,3.07,183.19,183.18,2.99761545]
[1755522247156,3.07,183.21,183.18,2.99761545]
[1755522247347,3.07,183.22,183.2,2.96]
[1755522247653,138.91,183.23,183.19,2.96]
[1755522247953,135.84,183.23,183.19,2.96]
[1755522248545,138.91,183.23,183.19,2.96]
[1755522250649,3.07,183.22,183.19,2.96]
[1755522252351,3.07,183.25,183.19,2.96]
[1755522252549,1.46647639,183.29,183.19,2.96]
[1755522252759,135.84,183.27,183.19,2.96]
[1755522252957,4.5485366,183.26,183.19,2.96]
[1755522253259,3.07,183.26,183.19,2.96]
[1755522253460,3.07,183.25,183.22,2.96]
[1755522253856,3.07,183.24,183.23,2.96]
[1755522254457,3.07,183.26,183.23,2.96]
[1755522254660,3.07,183.25,183.24,2.96]
[1755522255258,3.07,183.26,183.22,2.96]
[1755522256756,138.91,183.27,183.23,2.96]
[1755522256952,4.54745515,183.26,183.23,2.96]
[1755522257260,3.58642247,183.29,183.23,2.96]
[1755522257561,140.36704878,183.28,183.23,2.96]
[1755522257761,135.82,183.28,183.23,2.96]
[1755522258365,138.89,183.28,183.23,2.96]
[1755522258569,3.07,183.28,183.23,2.96]
[1755522258863,136.33642247,183.29,183.23,2.96]
[1755522261468,3.07,183.27,183.23,2.96]
[1755522263659,3.02,183.26,183.23,2.96]
[1755522264166,3.02,183.27,183.21,0.03490931]
[1755522264470,3.02,183.27,183.22,2.97]
[1755522264773,3.02,183.28,183.22,2.97]
[1755522267165,3.02,183.28,183.21,0.03490931]
[1755522267370,3.02,183.26,183.21,3.00490931]
[1755522267671,3.02,183.26,183.23,2.97]
[1755522267863,3.02,183.25,183.24,2.97]
[1755522271778,136.33642247,183.29,183.24,2.97]
[1755522271973,3.02,183.26,183.25,2.97]
[1755522272772,0.51642247,183.29,183.24,2.97]
[1755522272973,7.56719237,183.28,183.24,2.97]
[1755522273169,3.02,183.27,183.24,2.97]
[1755522275781,3.53642247,183.29,183.24,2.97]
[1755522275974,0.51642247,183.29,183.25,2.97]
[1755522276173,0.51642247,183.29,183.24,2.97]
[1755522276582,0.51642247,183.29,183.24,5.69939549]
[1755522276881,0.51642247,183.29,183.25,2.97]
[1755522277081,0.51642247,183.29,183.25,8.4241]
[1755522277378,0.51642247,183.29,183.27,2.97]
[1755522279691,0.51642247,183.29,183.28,2.97]
[1755522280084,3.53642247,183.29,183.28,2.97]
[1755522280284,0.51642247,183.29,183.28,2.97]
[1755522281596,3.53642247,183.29,183.28,2.97]
[1755522282079,0.51642247,183.29,183.28,2.97]
[1755522284192,3.53642247,183.29,183.28,2.97]
[1755522286693,0.51642247,183.29,183.28,2.97]
[1755522290794,54.0,183.36,183.28,2.97]
[1755522290994,3.02,183.35,183.28,2.97]
[1755522291296,3.02,183.35,183.29,2.97]
[1755522291694,3.02,183.35,183.3,0.03958285]
[1755522291998,3.02,183.35,183.31,2.97]
[1755522292794,2.86,183.39,183.31,2.97]
[1755522298793,54.0,183.38,183.31,2.97]
[1755522298992,2.86,183.37,183.31,2.97]
[1755522299500,2.86,183.37,183.32,0.03634677]
[1755522299698,2.86,183.36,183.33,2.96]
[1755522299903,2.86,183.36,183.34,2.96]
[1755522300199,54.0,183.38,183.34,2.96]
[1755522300404,2.86,183.37,183.34,2.96]
[1755522301803,2.86,183.37,183.33,2.96]
[1755522302300,2.86,183.36,183.33,2.96]
[1755522302605,2.86,183.35,183.34,2.96]
[1755522302902,2.86,183.34,183.32,0.03634677]
[1755522303400,2.86,183.33,183.32,2.99634677]
[1755522303605,2.86,183.33,183.32,0.03634677]
[1755522306200,2.86,183.32,183.24,2.96]
[1755522306407,8.55939549,183.32,183.24,2.96]
[1755522306708,54.0,183.34,183.25,5.69939549]
[1755522306908,2.86,183.33,183.26,2.96]
[1755522307500,0.03913552,183.31,183.26,2.96]
[1755522307703,0.03913552,183.31,183.27,2.96]
[1755522308599,0.03913552,183.31,183.26,2.96]
[1755522308797,2.89913552,183.31,183.26,2.96]
[1755522309206,0.03913552,183.31,183.26,2.96]
[1755522310310,0.03913552,183.31,183.26,8.4139]
[1755522310510,0.03913552,183.31,183.27,2.96]
[1755522311011,2.89913552,183.31,183.27,2.96]
[1755522312307,2.86,183.3,183.25,5.69939549]
[1755522312610,0.03913552,183.31,183.26,2.96]
[1755522312906,2.86,183.28,183.27,2.96]
[1755522313405,2.86,183.27,183.26,2.96]
[1755522313614,2.86,183.26,183.25,2.96]
[1755522314308,2.90135926,183.27,183.26,2.96]
[1755522314807,0.04135926,183.27,183.25,5.69939549]
[1755522315014,0.04135926,183.27,183.26,2.96]
[1755522315212,2.90135926,183.27,183.26,2.96]
[1755522315401,2.90135926,183.27,183.25,2.96]
[1755522315402,2.86,183.26,183.25,2.96]
[1755522315603,2.90135926,183.27,183.26,2.96]
[1755522315907,0.04135926,183.27,183.26,2.96]
[1755522317010,2.86,183.34,183.26,2.96]
[1755522317220,2.86,183.34,183.27,5.69939549]
[1755522317406,2.86,183.34,183.26,14.11309549]
[1755522317715,2.86,183.34,183.27,2.96]
[1755522318316,2.86,183.34,183.26,5.69939549]
[1755522318317,2.86,183.34,183.29,2.99735189]
[1755522318813,2.86,183.34,183.29,0.03735189]
[1755522319012,2.86,183.34,183.29,2.99735189]
[1755522319816,2.86,183.34,183.29,0.03735189]
[1755522320011,4.57815664,183.33,183.29,0.03735189]
[1755522320212,2.86,183.34,183.29,0.03735189]
[1755522320512,2.86,183.32,183.29,2.99735189]
[1755522320709,2.86,183.31,183.29,2.99735189]
[1755522321515,2.86,183.32,183.31,2.96]
[1755522322014,2.86,183.32,183.29,0.03735189]
[1755522322015,4.58065537,183.32,183.29,0.03735189]
[1755522322311,2.86,183.31,183.29,0.03735189]
[1755522324613,54.0,183.3,183.29,0.03735189]
[1755522324918,2.88,183.29,183.24,3.04]
[1755522325619,2.88,183.29,183.26,3.04]
[1755522325916,54.0,183.3,183.26,3.04]
[1755522326110,2.88,183.28,183.26,3.04]
[1755522326306,2.88,183.28,183.18,11.77165752]
[1755522326307,2.88,183.27,183.23,3.04]
[1755522326510,2.88,183.27,183.24,3.04]
[1755522326710,2.88,183.28,183.2,3.04]
[1755522327410,0.03536348,183.26,183.2,3.04]
[1755522327719,2.91536348,183.26,183.2,3.04]
[1755522329823,2.91536348,183.26,183.18,3.04]
[1755522330517,4.57592629,183.25,183.18,3.04]
[1755522330711,2.88,183.23,183.16,3.04]
[1755522331526,2.88,183.2,183.12,3.04]
[1755522332217,0.03578483,183.21,183.12,3.04]
[1755522332418,2.91578483,183.21,183.12,3.04]
[1755522332615,0.03578483,183.21,183.14,5.69939549]
[1755522332814,0.03578483,183.21,183.15,3.04]
[1755522333219,2.88,183.22,183.15,3.04]
[1755522333719,0.03682487,183.2,183.15,5.4572]
[1755522333920,0.03682487,183.2,183.17,5.69939549]
[1755522334118,0.03682487,183.2,183.18,3.04]
[1755522334422,2.88,183.25,183.18,3.04]
[1755522335122,0.03737286,183.23,183.18,3.04]
[1755522336518,0.03737286,183.23,183.19,3.04]
[1755522336720,2.88,183.22,183.19,3.04]
[1755522336919,2.91737286,183.23,183.19,3.04]
[1755522337417,2.91737286,183.23,183.17,5.69939549]
[1755522337617,2.88,183.22,183.13,5.4576]
[1755522337817,2.88,183.22,183.14,3.04]
[1755522338421,0.0357827,183.2,183.14,3.04]
[1755522339324,2.9157827,183.2,183.14,3.04]
[1755522342420,0.0357827,183.2,183.14,3.04]
[1755522343818,0.0357827,183.2,183.15,5.457]
[1755522344015,0.0357827,183.2,183.16,3.04]
[1755522345922,22.45399788,183.36,183.19,3.04]
[1755522346121,139.88,183.35,183.23,5.69939549]
[1755522346321,2.88,183.33,183.24,3.04]
[1755522347425,2.88,183.33,183.27,3.07850944]
[1755522347617,0.94960024,183.37,183.27,3.07850944]
[1755522347927,2.88,183.36,183.27,3.07850944]
[1755522348422,2.88,183.36,183.27,3.04]
[1755522348723,8.57939549,183.36,183.27,3.04]
[1755522349027,2.88,183.35,183.3,0.03511251]
[1755522349230,2.88,183.34,183.3,0.03511251]
[1755522349720,2.88,183.34,183.3,3.07511251]
[1755522349927,2.88,183.32,183.3,3.07511251]
[1755522350122,2.88,183.31,183.3,0.03511251]
[1755522350323,146.56,183.31,183.24,3.04]
[1755522350629,146.56,183.31,183.22,122.8513777]
[1755522350630,2.88,183.29,183.22,125.8913777]
[1755522350819,2.88,183.26,183.22,125.8913777]
[1755522351018,2.88,183.24,183.22,125.8913777]
[1755522351224,2.88,183.23,183.22,3.04]
[1755522351428,2.88,183.23,183.2,3.04]
[1755522351825,2.88,183.21,183.13,3.04]
[1755522352126,2.88,183.19,183.13,3.04]
[1755522352326,149.62,183.19,183.13,3.04]
[1755522352525,149.65575686,183.19,183.13,3.04]
[1755522352724,2.86,183.18,183.13,3.04]
[1755522353234,0.03575686,183.19,183.15,3.14]
[1755522353524,0.03575686,183.19,183.14,5.69939549]
[1755522353525,102.28,183.25,183.18,3.14]
[1755522353726,2.86,183.26,183.18,3.14]
[1755522353922,146.78,183.25,183.2,5.69939549]
[1755522354122,2.86,183.28,183.21,3.14]
[1755522354625,146.74,183.27,183.21,3.14]
[1755522354827,146.74,183.27,183.24,3.14]
[1755522355022,146.74,183.27,183.25,3.14]
[1755522355222,2.86,183.28,183.25,3.14]
[1755522355421,146.68,183.27,183.25,3.14]
[1755522355728,2.86,183.27,183.25,3.14]
[1755522355926,146.66,183.26,183.25,3.14]
[1755522356128,366.68,183.29,183.26,3.14]
[1755522356327,513.26,183.29,183.27,3.14]
[1755522356628,366.68,183.29,183.28,3.14]
[1755522359025,2.86,183.28,183.27,0.0383963]
[1755522359224,366.68,183.29,183.27,3.1783963]
[1755522359417,2.86,183.28,183.27,3.1783963]
[1755522359930,151.16,183.28,183.27,3.1783963]
[1755522360424,148.3,183.28,183.27,3.1783963]
[1755522361223,148.3,183.28,183.27,0.0383963]
[1755522361224,151.16,183.28,183.27,0.0383963]
[1755522362122,156.85939549,183.28,183.27,0.0383963]
[1755522362518,2.86,183.27,183.19,3.14]
[1755522362724,5.69939549,183.25,183.19,3.14]
[1755522363022,2.86,183.23,183.19,3.14]
[1755522363218,2.86,183.22,183.2,3.14]
[1755522363425,2.86,183.25,183.23,3.14]
[1755522363627,148.26,183.24,183.23,3.14]
[1755522363929,148.26,183.24,183.21,3.14]
[1755522363930,0.03481,183.23,183.21,3.14]
[1755522364129,148.3,183.22,183.21,3.14]
[1755522364430,2.86,183.21,183.19,3.14]
[1755522364727,148.3,183.22,183.21,3.14]
[1755522365024,148.3,183.22,183.17,4.50617712]
[1755522365230,148.3,183.22,183.18,3.14]
[1755522365528,151.16,183.22,183.18,3.14]
[1755522365917,148.3,183.22,183.18,3.14]
[1755522366227,148.35481,183.23,183.19,3.14]
[1755522367019,151.21481,183.23,183.19,7.64617712]
[1755522367222,151.21481,183.23,183.21,3.14]
[1755522367419,151.21481,183.23,183.22,3.14]
[1755522367620,2.86,183.22,183.2,3.14]
[1755522368120,2.86,183.22,183.21,3.14]
[1755522368627,2.86,183.22,183.17,3.14]
[1755522369326,2.86,183.21,183.14,3.14]
[1755522370232,148.32,183.23,183.13,4.50617712]
[1755522370233,2.89695608,183.19,183.13,4.50617712]
[1755522370432,148.0,183.18,183.17,3.14]
[1755522370927,148.0,183.18,183.13,4.50617712]
[1755522371139,2.86,183.15,183.14,3.14]
[1755522371428,2.86,183.15,183.13,3.14]
[1755522371630,2.86,183.15,183.11,4.50617712]
[1755522371631,2.86,183.17,183.11,3.14]
[1755522372431,2.86,183.17,183.07,5.69939549]
[1755522372432,0.0355509,183.16,183.09,4.50617712]
[1755522372621,2.8955509,183.16,183.14,3.14]
[1755522372827,0.0355509,183.16,183.15,3.14]
[1755522373631,147.86,183.22,183.17,3.14]
[1755522374031,2.86,183.21,183.17,3.14]
[1755522374235,2.86,183.21,183.19,3.14]
[1755522374536,2.86,183.21,183.15,3.14]
[1755522374931,2.86,183.2,183.18,3.1768292]
[1755522375134,2.86,183.19,183.18,0.0368292]
[1755522381240,2.86,183.19,183.11,3.14]
[1755522381438,2.86,183.17,183.11,3.14]
[1755522381637,2.86,183.15,183.09,3.14]
[1755522382444,2.96,183.13,183.1,3.01]
[1755522382646,150.36,183.12,183.1,3.01]
[1755522382840,147.4,183.12,183.1,3.01]
[1755522383041,2.96,183.11,183.07,3.01]
[1755522383841,2.99578362,183.11,183.07,3.01]
[1755522384848,2.96,183.1,183.02,3.01]
[1755522385347,2.96,183.1,183.02,8.4709]
[1755522385547,2.96,183.1,183.03,3.01]
[1755522385944,147.1,183.09,183.03,3.01]
[1755522386149,2.96,183.13,183.03,3.01]
[1755522386344,0.03554338,183.08,183.03,3.01]
[1755522386539,0.03554338,183.08,183.06,3.01]
[1755522389253,0.03554338,183.08,183.06,8.4699]
[1755522389449,0.03554338,183.08,183.07,3.01]
[1755522389853,0.03554338,183.08,183.07,8.4696]
[1755522390056,0.03554338,183.08,183.07,3.01]
[1755522390759,2.99554338,183.08,183.02,3.01]
[1755522393558,2.99554338,183.08,183.03,3.01]
[1755522394255,2.99554338,183.08,183.03,5.4607]
[1755522394559,2.99554338,183.08,183.04,3.01]
[1755522394757,2.99554338,183.08,183.04,5.4605]
[1755522394961,0.03554338,183.08,183.05,3.01]
[1755522395660,0.03554338,183.08,183.06,3.01]
[1755522397163,0.03554338,183.08,183.07,5.4596]
[1755522397364,0.03554338,183.08,183.07,8.4696]
[1755522397664,0.03554338,183.08,183.07,3.01]
[1755522401365,2.99554338,183.08,183.05,8.4701]
[1755522401565,0.03554338,183.08,183.06,3.01]
[1755522401768,0.03554338,183.08,183.07,3.01]
[1755522402060,2.99554338,183.08,183.07,3.01]
[1755522402265,0.03554338,183.08,183.07,3.01]
[1755522402568,2.99554338,183.08,183.07,3.01]
[1755522402866,0.03554338,183.08,183.07,3.01]
[1755522403565,0.03554338,183.08,183.07,8.4696]
[1755522405372,0.03554338,183.08,183.07,3.01]